bitfinex/quotes_ETHUSD_20240823
["timestamp","ask_amount","ask_price","bid_price","bid_amount"]
[1724436533610,0.07342363,2727.9,2726.7,3.66742]
[1724436533765,4.03996136,2727.8,2726.6,9.8509]
[1724436533971,0.37391136,2727.8,2726.6,9.8509]
[1724436534262,0.37391136,2727.8,2727.0,3.66702]
[1724436534463,3.0,2728.1,2727.1,3.74020958]
[1724436534668,5.83728,2729.2,2725.9,9.95026917]
[1724436534669,9.0559,2729.1,2727.2,9.53152895]
[1724436534985,9.0559,2729.1,2727.4,3.66644]
[1724436534986,3.66472,2728.8,2727.4,3.66644]
[1724436535204,3.66472,2728.8,2727.2,9.4582]
[1724436535205,0.07342363,2728.7,2727.2,9.4582]
[1724436535426,0.07342363,2728.7,2727.6,3.66612]
[1724436535729,0.37380736,2728.6,2727.4,9.7592]
[1724436535930,12.72011,2729.1,2727.6,3.66616]
[1724436536228,3.66436,2729.0,2727.9,3.66576]
[1724436536437,3.66395,2729.3,2728.1,13.42471]
[1724436536731,0.07342363,2729.0,2728.1,9.7592]
[1724436536956,3.66409,2729.2,2728.1,9.7592]
[1724436537126,4.397054,2729.1,2728.1,9.7592]
[1724436537307,4.47047763,2729.1,2728.1,9.7592]
[1724436537832,4.47047763,2729.1,2727.7,9.2806]
[1724436537833,3.66456,2728.9,2727.7,9.2806]
[1724436537992,3.66525,2728.4,2727.7,9.2806]
[1724436538198,0.07342363,2728.3,2727.7,9.2806]
[1724436538620,3.0,2728.6,2727.7,12.94661]
[1724436538851,0.3,2728.6,2727.7,12.94661]
[1724436539021,6.73790363,2728.9,2727.7,12.94661]
[1724436539218,3.07342363,2728.9,2727.9,3.66582]
[1724436539420,0.07342363,2728.9,2727.7,16.61255]
[1724436539729,6.66447,2729.0,2727.7,9.2806]
[1724436539730,3.0,2729.0,2727.7,9.2806]
[1724436539949,3.732804,2729.1,2728.3,3.66525]
[1724436540095,13.1064,2729.6,2728.4,3.66513]
[1724436540291,3.66384,2729.4,2728.5,9.3493]
[1724436540593,13.10638,2729.6,2728.5,9.3493]
[1724436540819,3.66418,2729.2,2728.5,9.3493]
[1724436541018,13.10638,2729.6,2728.5,9.3493]
[1724436541220,5.04784163,2729.5,2728.5,9.3493]
[1724436541424,4.974418,2729.5,2728.5,9.3493]
[1724436541591,0.07342363,2729.4,2728.5,9.3493]
[1724436542103,0.07342363,2729.4,2728.1,9.2193]
[1724436542322,0.07342363,2729.4,2728.2,3.66532]
[1724436542323,3.66381,2729.4,2728.2,3.66532]
[1724436542520,1.310638,2729.5,2728.2,3.66537]
[1724436542724,3.66405,2729.3,2728.1,9.2193]
[1724436542924,0.07342363,2729.4,2728.2,3.66531]
[1724436543123,3.66384,2729.4,2728.3,3.66528]
[1724436543326,4.974398,2729.5,2728.1,12.8848]
[1724436543533,1.4417198,2729.4,2728.5,3.66488]
[1724436543728,1.4417198,2729.4,2728.6,3.66488]
[1724436544140,3.66318,2729.9,2728.6,3.66488]
[1724436544141,3.66318,2729.9,2728.8,3.66461]
[1724436544446,3.66291,2730.1,2728.8,3.64911]
[1724436544447,3.66304,2730.0,2728.8,3.64911]
[1724436545250,3.66315,2729.9,2728.8,3.64911]
[1724436545399,3.0,2729.8,2728.8,3.64911]
[1724436545799,3.0,2729.8,2728.7,9.9229]
[1724436545995,0.67365736,2729.7,2728.7,13.58763]
[1724436546208,0.67365736,2729.7,2728.7,9.9229]
[1724436546653,3.66397,2729.3,2728.3,9.791]
[1724436546816,0.07342363,2729.2,2728.3,9.791]
[1724436547003,0.37373936,2729.1,2728.3,9.791]
[1724436547336,0.07342363,2729.0,2728.3,9.791]
[1724436547537,0.07342363,2729.0,2727.9,3.66579]
[1724436547700,3.66449,2728.9,2727.8,9.6721]
[1724436547899,0.07342363,2728.8,2727.8,9.6721]
[1724436548096,0.38076599,2728.8,2727.8,13.33804]
[1724436548332,0.07342363,2728.7,2727.8,9.6721]
[1724436549059,3.66504,2728.5,2727.8,9.6721]
[1724436549243,3.07342363,2728.4,2727.2,9.7653]
[1724436549541,3.66552,2728.2,2727.2,9.7653]
[1724436549737,3.0,2728.3,2726.7,9.7653]
[1724436549738,3.66611,2727.7,2726.7,9.7653]
[1724436549913,0.07342363,2727.6,2726.7,9.7653]
[1724436550114,3.66678,2727.2,2726.1,9.7828]
[1724436550315,0.07342363,2727.1,2726.1,9.7828]
[1724436550518,13.01922363,2727.1,2725.6,9.7828]
[1724436550707,9.9458,2726.5,2724.1,9.7828]
[1724436550906,9.95008917,2726.1,2724.1,9.7828]
[1724436551103,3.07342363,2726.0,2724.6,3.67026]
[1724436551357,10.41031363,2726.0,2724.6,3.67026]
[1724436551547,1.04103136,2725.9,2724.3,3.67058]
[1724436551723,1.04103136,2725.9,2724.6,3.67025]
[1724436551724,0.07342363,2725.8,2724.6,3.67025]
[1724436551924,1.04103136,2725.9,2724.6,3.67025]
[1724436552124,3.66806,2726.3,2724.9,3.66984]
[1724436552125,3.0,2726.2,2724.9,3.66984]
[1724436552334,3.0,2726.2,2725.0,9.7828]
[1724436552505,9.9458,2726.5,2725.0,9.7828]
[1724436552506,3.07342363,2726.4,2725.0,9.7828]
[1724436552703,3.0,2726.4,2725.0,9.7828]
[1724436552946,0.07342363,2726.3,2725.3,3.66931]
[1724436553155,0.38076599,2726.2,2725.1,3.66952]
[1724436553369,0.38076599,2726.2,2725.0,9.7828]
[1724436553370,0.07342363,2726.2,2725.0,9.7828]
[1724436553512,3.66783,2726.5,2725.2,3.66945]
[1724436553513,0.07342363,2726.3,2725.2,3.66945]
[1724436553712,0.07342363,2726.2,2724.7,9.624]
[1724436554157,0.07342363,2726.2,2724.8,3.66994]
[1724436554318,3.74159363,2726.2,2724.8,3.66994]
[1724436554512,3.37415936,2726.1,2724.8,4.999334]
[1724436554719,3.74181363,2726.0,2724.8,1.329394]
[1724436554918,3.0,2725.9,2724.7,9.624]
[1724436555251,3.66893,2725.6,2724.7,9.624]
[1724436555423,0.07342363,2725.5,2724.7,9.624]
[1724436555625,6.74248363,2725.5,2724.1,3.6709]
[1724436555829,6.74248363,2725.5,2724.2,3.67079]
[1724436556027,6.74248363,2725.5,2724.0,9.1303]
[1724436556028,0.67424836,2725.4,2724.0,9.1303]
[1724436556219,0.07342363,2725.3,2724.0,12.80134]
[1724436556420,3.74288363,2725.2,2723.7,3.67146]
[1724436556642,3.66973,2725.0,2723.7,3.67146]
[1724436556968,0.07342363,2724.9,2723.8,3.6713]
[1724436557254,3.07342363,2724.9,2723.6,3.67158]
[1724436557425,3.07342363,2724.9,2723.5,9.1628]
[1724436557426,3.67024,2724.7,2723.5,9.1628]
[1724436557639,0.07342363,2724.6,2723.5,9.1628]
[1724436557837,3.0,2724.6,2723.6,3.67156]
[1724436558039,3.30734236,2724.8,2723.7,3.67146]
[1724436558238,3.0,2724.9,2723.8,4.038446]
[1724436558542,3.66947,2725.2,2723.6,9.0125]
[1724436558543,0.07342363,2724.8,2723.6,9.0125]
[1724436558925,3.74352363,2724.8,2723.6,9.0125]
[1724436559127,3.67027,2724.6,2723.6,9.0125]
[1724436559330,0.07342363,2724.5,2723.6,9.0125]
[1724436560069,3.74345363,2724.8,2723.6,9.0125]
[1724436560273,3.67027,2724.6,2723.1,9.3843]
[1724436560473,3.81475599,2724.7,2723.1,9.3843]
[1724436560474,6.3552728,2724.5,2723.1,9.3843]
[1724436560937,3.0,2724.4,2723.1,9.3843]
[1724436561137,6.67044,2724.5,2723.1,9.3843]
[1724436561350,3.67044,2724.5,2723.2,3.67203]
[1724436561551,7.037584,2724.4,2723.3,1.305633]
[1724436561746,3.0,2724.4,2723.3,4.977613]
[1724436561986,3.0,2724.7,2723.3,4.977613]
[1724436562306,3.0,2724.7,2723.6,3.67159]
[1724436562591,13.02962,2725.0,2723.7,3.67146]
[1724436562793,3.66946,2725.2,2723.6,3.67157]
[1724436562938,9.8355,2725.4,2723.5,3.67164]
[1724436562939,3.6701,2724.8,2723.5,3.67164]
[1724436563132,3.74357363,2724.7,2723.5,3.67164]
[1724436563340,3.67122,2723.9,2722.6,0.1301956]
[1724436563656,12.82605,2723.4,2722.6,0.1301956]
[1724436563859,3.67254,2723.0,2722.6,0.1301956]
[1724436564056,3.67269,2722.8,2722.6,0.1301956]
[1724436564362,0.734483,2723.0,2722.6,0.1301956]
[1724436564546,3.67215,2723.2,2722.6,0.1301956]
[1724436564741,0.07342363,2723.2,2722.6,0.1301956]
[1724436565217,0.07342363,2723.2,2719.9,0.70649043]
[1724436565218,3.67368,2722.1,2720.9,9.8864]
[1724436565509,9.36732363,2723.1,2721.3,3.67469]
[1724436565510,9.2939,2723.1,2721.3,3.67469]
[1724436565654,3.0,2722.0,2720.9,9.8864]
[1724436566012,3.0,2722.0,2721.2,3.67474]
[1724436566303,3.0,2722.2,2721.0,0.98864]
[1724436566637,13.01632,2723.6,2721.8,3.6739]
[1724436566782,13.01632,2723.6,2722.1,3.67356]
[1724436566979,13.01632,2723.6,2721.9,0.53200192]
[1724436566980,3.67188,2723.4,2721.9,0.53200192]
[1724436567179,0.07342363,2723.3,2721.8,3.67395]
[1724436567394,0.07342363,2723.3,2721.7,9.2152]
[1724436567395,3.67188,2723.4,2721.7,9.74720192]
[1724436567724,0.07342363,2723.3,2722.2,3.67349]
[1724436568015,0.07342363,2723.3,2721.8,3.67403]
[1724436568173,0.07342363,2723.3,2722.1,3.67358]
[1724436568174,0.07342363,2723.2,2722.1,3.67358]
[1724436568357,1.301632,2723.5,2722.1,3.67358]
[1724436568693,0.07342363,2723.4,2722.3,9.2755]
[1724436569005,0.07342363,2723.4,2722.4,3.67322]
[1724436569214,0.07342363,2723.7,2722.4,3.67322]
[1724436569360,0.07342363,2723.7,2722.5,0.98864]
[1724436569361,0.81502499,2723.7,2722.5,0.98864]
[1724436569558,3.74500363,2723.7,2722.3,9.2755]
[1724436569891,3.67208,2723.3,2722.3,9.2755]
[1724436570111,0.07342363,2723.2,2722.3,9.2755]
[1724436570421,0.07342363,2723.5,2722.3,12.94873]
[1724436570556,0.07342363,2723.6,2722.3,12.94884]
[1724436570764,3.74474363,2723.9,2722.4,1.294884]
[1724436570955,0.08383742,2723.5,2722.4,1.294884]
[1724436571229,0.08383742,2723.5,2722.4,4.968094]
[1724436571441,0.15726105,2723.5,2722.4,4.968094]
[1724436571560,0.08383742,2723.5,2722.4,4.968094]
[1724436571901,3.74530363,2723.4,2722.4,1.294884]
[1724436572096,3.08383742,2723.3,2722.3,9.2755]
[1724436572276,0.15726105,2723.2,2722.3,9.2755]
[1724436572481,0.08383742,2723.1,2722.3,9.2755]
[1724436572721,0.07342363,2723.0,2722.0,3.67376]
[1724436572980,0.08383742,2722.9,2721.8,3.67403]
[1724436573304,0.08383742,2722.9,2722.2,3.67348]
[1724436573502,0.15726105,2722.9,2721.6,9.9076]
[1724436573829,0.15726105,2722.9,2721.8,3.674]
[1724436574117,0.15726105,2722.9,2721.9,3.67387]
[1724436574409,0.15726105,2722.9,2722.0,3.67376]
[1724436574624,0.15726105,2722.9,2721.9,0.367387]
[1724436574625,0.08383742,2722.9,2722.2,3.67336]
[1724436574763,0.08383742,2722.9,2721.9,0.367387]
[1724436574962,0.00797087,2722.9,2722.2,3.67349]
[1724436575170,0.00797087,2722.9,2722.5,3.67309]
[1724436575818,0.00797087,2722.9,2722.6,3.67294]
[1724436576105,0.07342363,2723.7,2722.7,9.2758]
[1724436576288,3.67118,2724.0,2722.8,3.67172184]
[1724436576527,0.07342363,2723.9,2722.8,3.67172184]
[1724436576693,0.37446036,2723.8,2722.7,9.2758]
[1724436577032,0.44788399,2723.8,2722.8,3.67259]
[1724436577231,0.07342363,2723.7,2722.7,3.67282]
[1724436577416,0.07342363,2723.7,2722.6,3.67294]
[1724436577602,3.67143,2723.8,2722.5,3.67297]
[1724436577805,3.67162,2723.6,2722.5,3.67297]
[1724436577990,0.07342363,2723.5,2722.5,3.67297]
[1724436578329,0.37450436,2723.4,2722.5,3.67308]
[1724436578533,0.07342363,2723.3,2722.5,3.67308]
[1724436578743,3.74561363,2723.2,2721.8,9.818]
[1724436578961,0.07342363,2723.2,2722.2,3.67339]
[1724436579145,3.07342363,2723.3,2722.5,3.67305]
[1724436579443,0.3447928,2723.2,2722.5,3.67309]
[1724436579663,0.07342363,2723.3,2722.5,3.67309]
[1724436579814,3.0,2723.5,2722.5,3.67309]
[1724436579998,3.07342363,2723.5,2722.5,3.67309]
[1724436580218,0.07342363,2723.5,2721.8,9.818]
[1724436580509,0.07342363,2723.5,2722.1,3.67354]
[1724436580510,3.67202,2723.3,2722.1,3.67354]
[1724436580720,3.67228,2723.1,2722.0,3.67375]
[1724436581049,3.67228,2723.1,2721.9,3.67385]
[1724436581050,0.07342363,2723.0,2721.9,3.67385]
[1724436581192,0.07342363,2723.0,2721.7,3.67404]
[1724436581193,3.07342363,2723.0,2721.7,3.67404]
[1724436581393,3.97998236,2722.9,2721.7,3.67404]
[1724436581592,3.07342363,2722.8,2721.8,3.674]
[1724436581826,3.07342363,2722.8,2722.0,3.67376]
[1724436581827,3.0,2722.8,2722.0,3.67376]
[1724436582005,3.0,2723.0,2722.1,3.67362]
[1724436582235,3.0,2723.1,2722.3,3.67327]
[1724436582590,0.30734236,2723.4,2722.5,3.67308]
[1724436582827,6.67162,2723.6,2722.5,3.67308]
[1724436583027,3.67143,2723.8,2722.5,3.67298]
[1724436583233,3.67113,2724.0,2722.7,3.67271]
[1724436583639,12.91582,2724.3,2723.1,3.67217]
[1724436583793,0.07342363,2724.2,2723.1,3.67217]
[1724436583998,0.93185236,2724.1,2723.1,3.67217]
[1724436584338,3.66995,2724.9,2723.7,3.67146]
[1724436584538,4.036566,2725.1,2723.2,9.52953342]
[1724436584539,4.036566,2725.1,2723.9,3.67109]
[1724436584748,0.366946,2725.1,2724.1,3.6708]
[1724436584948,9.3896,2725.3,2724.2,3.67077]
[1724436585377,9.7022,2725.9,2724.0,9.4561]
[1724436585658,3.74217363,2725.8,2724.6,3.67025]
[1724436585799,3.74223363,2725.7,2724.6,3.67025]
[1724436586198,13.37071,2725.9,2724.6,3.67025]
[1724436586443,5.07914463,2725.8,2724.6,4.037265]
[1724436586658,1.337071,2725.8,2725.0,3.66972]
[1724436586798,1.337071,2725.8,2725.0,3.6697]
[1724436587443,1.337071,2725.8,2724.8,3.66988]
[1724436587658,1.337071,2725.8,2724.9,3.66979]
[1724436587950,0.07342363,2725.7,2724.8,3.66988]
[1724436588165,1.17735073,2725.7,2724.8,3.66988]
[1724436588501,1.1039271,2725.7,2724.9,3.66974]
[1724436588702,1.1039271,2725.7,2724.8,3.66988]
[1724436588703,3.66838,2726.0,2724.8,3.66988]
[1724436588905,3.74180363,2726.0,2724.8,3.66988]
[1724436589338,3.74180363,2726.0,2724.8,7.33975]
[1724436589658,3.0,2725.9,2724.6,0.367025]
[1724436589841,3.0,2725.9,2724.3,4.22056]
[1724436589842,3.07342363,2726.0,2725.0,3.66959]
[1724436590176,3.07342363,2726.0,2724.5,3.67037]
[1724436590177,3.07342363,2726.0,2724.6,3.67017]
[1724436590458,3.66866,2725.8,2724.6,3.67017]
[1724436590764,3.07342363,2725.7,2724.8,3.66989]
[1724436590912,3.0,2725.7,2725.0,3.66962]
[1724436591262,0.07342363,2725.6,2724.8,13.38689]
[1724436591531,0.07342363,2725.6,2724.6,3.67015]
[1724436591688,0.07342363,2725.6,2724.7,3.67003]
[1724436592280,0.07342363,2725.6,2724.6,3.67015]
[1724436592588,0.07342363,2725.6,2724.5,3.67035]
[1724436592793,0.33734236,2725.5,2724.7,3.67012]
[1724436592940,0.33734236,2725.5,2723.8,3.0]
[1724436592941,0.41076599,2725.5,2724.1,9.9671]
[1724436593140,3.41076599,2725.5,2724.5,3.67039]
[1724436593467,3.6695,2725.2,2723.6,9.2682]
[1724436593666,13.61852,2725.4,2724.2,3.67071]
[1724436593885,4.47635223,2725.3,2724.2,3.67071]
[1724436594042,0.07342363,2725.2,2724.2,3.67071]
[1724436594243,0.07342363,2725.2,2724.3,3.67065]
[1724436594796,8.0722586,2725.3,2724.1,3.67084]
[1724436594797,4.4029286,2725.3,2724.2,3.67079]
[1724436594998,4.47635223,2725.3,2724.3,3.67063]
[1724436595159,1.80949422,2725.2,2724.3,3.67063]
[1724436595344,1.80949422,2725.2,2724.1,3.67085]
[1724436596147,1.80949422,2725.2,2723.6,12.93977]
[1724436596148,3.67022,2724.7,2723.6,9.2682]
[1724436596412,0.07342363,2724.6,2723.7,3.67146]
[1724436596581,12.91782363,2724.6,2723.3,3.67193]
[1724436596747,3.67056,2724.4,2723.3,3.67193]
[1724436596949,1.29178236,2724.5,2723.8,3.67132]
[1724436597147,3.0,2725.0,2724.1,3.67089]
[1724436597485,3.0,2725.0,2724.1,3.67084]
[1724436597678,3.0,2725.0,2724.2,3.67071]
[1724436597887,1.26624,2724.9,2724.2,3.67071]
[1724436598198,1.26624,2724.9,2724.3,3.67065]
[1724436598406,3.0,2725.1,2724.3,3.67065]
[1724436598695,3.0,2725.2,2724.5,3.67039]
[1724436598842,3.0,2725.4,2724.5,3.67039]
[1724436599259,13.12201,2725.5,2724.5,3.67039]
[1724436599460,13.12201,2725.5,2724.3,3.67065]
[1724436599461,13.12201,2725.5,2724.3,3.67058]
[1724436599709,1.312201,2725.4,2724.4,3.67051]
[1724436600065,1.312201,2725.4,2724.3,3.67058]
[1724436600261,0.07342363,2725.3,2724.1,3.67087]
[1724436600513,3.66962,2725.1,2724.1,3.67085]
[1724436600800,3.07342363,2725.0,2724.1,3.67085]
[1724436600999,3.74772799,2725.0,2724.1,3.67085]
[1724436601503,3.0,2725.0,2723.9,9.1088]
[1724436601662,9.1104,2725.9,2725.0,3.6697]
[1724436601869,9.1104,2726.3,2725.4,3.66906]
[1724436602094,9.1104,2726.3,2725.2,3.66934]
[1724436602414,9.1104,2726.3,2725.3,0.07337296]
[1724436602615,9.1104,2726.3,2725.4,3.66906]
[1724436602851,9.1104,2726.3,2725.4,4.402908]
[1724436603162,12.7784,2726.3,2725.0,12.88333]
[1724436603363,3.66854,2725.9,2724.6,3.67016]
[1724436603645,9.1104,2726.3,2724.5,9.8515]
[1724436603646,12.77848,2726.3,2724.5,9.8515]
[1724436603787,9.1104,2726.3,2725.4,3.66913]
[1724436603963,9.1392,2726.7,2725.7,3.66872]
[1724436604162,9.1392,2726.7,2725.6,3.66882]
[1724436604163,1.280656,2726.6,2725.6,3.66882]
[1724436604483,1.280656,2726.6,2725.8,3.6686]
[1724436604806,3.66708,2727.0,2725.9,3.74186231]
[1724436605099,9.178,2727.1,2726.0,3.74171921]
[1724436605272,9.178,2727.1,2726.0,3.66836]
[1724436605666,3.66732,2726.8,2725.6,3.66887]
[1724436605867,3.66782,2726.5,2725.3,9.3682]
[1724436606092,0.37412436,2726.5,2725.4,4.60588]
[1724436606271,3.6672,2726.9,2725.6,3.6689]
[1724436606604,12.84492,2727.1,2725.8,3.66853]
[1724436606836,12.84492,2727.1,2726.0,3.66836]
[1724436607036,12.84492,2727.1,2726.1,0.07335498]
[1724436607326,9.178,2727.1,2726.2,0.07335085]
[1724436607486,10.462464,2727.1,2726.2,3.639074]
[1724436607692,1.284464,2727.1,2726.2,3.639074]
[1724436607926,3.667,2727.1,2726.0,9.0237]
[1724436608140,3.66691,2727.1,2726.0,9.0237]
[1724436608290,3.66693,2727.1,2726.0,9.0237]
[1724436608493,3.66723,2726.9,2726.0,9.0237]
[1724436608689,3.0,2727.0,2726.0,9.0237]
[1724436609030,3.666693,2727.0,2726.0,12.69203]
[1724436609199,13.23868,2727.5,2726.3,3.66793]
[1724436609607,13.23874,2727.5,2726.4,3.66773]
[1724436610127,3.66625,2727.6,2726.5,3.66765]
[1724436611741,3.66626,2727.6,2726.4,3.66783]
[1724436611893,3.66601,2727.8,2726.6,3.66747]
[1724436612090,3.66644,2727.5,2726.5,9.4669]
[1724436612304,3.73954363,2727.7,2726.5,13.1346]
[1724436612530,0.37395436,2727.6,2726.5,10.21059218]
[1724436612737,9.8585,2728.0,2726.8,3.66728]
[1724436612938,9.8585,2728.0,2726.6,4.2175]
[1724436612939,3.66591,2727.9,2726.6,4.2175]
[1724436613238,3.66591,2727.9,2726.6,4.21747]
[1724436613537,3.66591,2727.9,2726.7,3.66735]
[1724436613718,0.07342363,2727.8,2726.7,3.66735]
[1724436613909,0.37393336,2727.7,2726.7,3.66735]
[1724436614316,6.66597,2727.8,2726.7,3.66735]
[1724436614505,3.6661,2727.7,2726.7,3.66735]
[1724436614705,3.0,2727.6,2726.7,3.66735]
[1724436614933,3.0,2727.6,2726.5,9.4669]
[1724436615129,3.0,2727.6,2726.6,3.66755]
[1724436615303,0.666611,2727.5,2726.7,3.66741]
[1724436615507,3.0,2727.8,2726.6,3.66755]
[1724436615797,3.0,2727.8,2726.8,3.66719]
[1724436615998,3.66621,2727.7,2726.5,9.4669]
[1724436616201,6.66624,2727.6,2726.6,0.55]
[1724436616537,3.66691,2727.1,2726.5,9.4669]
[1724436616764,0.366691,2727.0,2726.5,9.4669]
[1724436616899,3.66667,2727.3,2726.5,9.4669]
[1724436617837,3.66691,2727.1,2726.1,9.1789]
[1724436618058,3.66691,2727.1,2725.6,0.47401355]
[1724436618059,3.66767,2726.6,2725.6,9.1789]
[1724436618253,0.366767,2726.5,2725.6,12.8478]
[1724436618458,3.66752,2726.7,2725.6,12.8478]
[1724436618611,3.74094363,2726.7,2725.6,12.8478]
[1724436618811,3.66752,2726.7,2725.6,16.51662]
[1724436619048,6.66709,2727.0,2725.6,12.84772]
[1724436619246,0.666709,2726.9,2726.0,3.66836]
[1724436619422,3.0,2727.0,2725.6,9.1789]
[1724436619423,3.66781,2726.5,2725.6,9.1789]
[1724436619622,3.66815,2726.2,2725.0,9.0559]
[1724436619852,16.82644,2726.4,2725.2,3.66936]
[1724436620027,3.07342363,2726.3,2725.2,3.66936]
[1724436620228,3.0,2726.3,2725.0,16.39512]
[1724436620552,5.284058,2726.2,2725.0,12.72551]
[1724436620963,1.615848,2726.2,2725.4,3.66916]
[1724436621119,3.0,2726.3,2725.4,3.66916]
[1724436621319,3.0,2726.5,2725.4,3.66907]
[1724436621552,3.0,2726.5,2725.9,3.6684]
[1724436621739,3.66708,2727.0,2725.8,3.66851]
[1724436621927,6.66718,2726.9,2725.8,3.66851]
[1724436622126,3.66759,2726.6,2725.6,13.31236]
[1724436622326,3.66779,2726.5,2725.6,9.6435]
[1724436622531,3.66759,2726.6,2725.6,9.6435]
[1724436623017,3.66785,2726.4,2725.6,9.6435]
[1724436623362,3.66817,2726.2,2725.2,9.5015]
[1724436623532,0.07342363,2726.1,2725.2,9.5015]
[1724436623861,0.07342363,2726.1,2725.2,13.17094]
[1724436623862,3.0,2726.1,2725.2,13.17094]
[1724436624186,3.0,2726.1,2725.2,9.5015]
[1724436624455,3.0,2726.1,2724.9,3.66978]
[1724436624456,3.66813,2726.2,2724.9,9.1362]
[1724436624632,3.66847,2726.0,2724.9,9.1362]
[1724436624832,3.66847,2726.0,2724.9,12.80593]
[1724436625061,3.0,2725.9,2724.9,9.1362]
[1724436625223,3.66897,2725.6,2724.9,9.1362]
[1724436625533,6.74214363,2725.8,2724.9,9.1362]
[1724436625734,3.66892,2725.6,2724.9,9.1362]
[1724436626148,0.67421436,2725.7,2724.9,9.1362]
[1724436626346,3.0,2725.9,2724.9,12.80594]
[1724436626548,3.0,2726.1,2725.1,3.6695]
[1724436626758,3.0,2726.1,2725.2,0.07337108]
[1724436626951,0.66682,2726.0,2725.1,3.6695]
[1724436627385,0.366785,2726.3,2725.3,3.66931]
[1724436627665,3.66821,2726.2,2725.2,4.21936]
[1724436627966,3.66833,2726.1,2725.0,3.66972]
[1724436628269,3.66818,2726.2,2725.1,4.21955]
[1724436628437,0.4034965,2726.1,2725.1,4.21955]
[1724436628639,3.66845,2726.0,2725.1,0.55]
[1724436628958,3.4034965,2726.1,2725.0,4.21961]
[1724436629303,3.66839,2726.0,2725.0,4.21961]
[1724436629435,3.66839,2726.0,2725.0,7.88925]
[1724436629638,1.07400565,2726.0,2725.1,3.66957]
[1724436630472,1.07400565,2726.0,2725.0,4.21961]
[1724436630764,4.74240565,2726.0,2725.0,4.21961]
[1724436630967,3.66867,2725.8,2724.9,9.1362]
[1724436631280,4.81582928,2726.0,2724.5,3.6703]
[1724436631281,3.0,2725.9,2724.5,3.6703]
[1724436631429,3.66903,2725.6,2724.6,3.67024]
[1724436632169,3.66903,2725.6,2724.5,3.6703]
[1724436632170,3.66902,2725.6,2724.5,3.6703]
[1724436632338,3.66919,2725.4,2724.4,9.2704]
[1724436632538,3.66919,2725.4,2724.4,12.94092]
[1724436632738,0.366919,2725.3,2724.4,12.94092]
[1724436632948,0.44034263,2725.3,2724.4,9.2704]
[1724436633161,3.66959,2725.1,2724.4,9.2704]
[1724436633378,3.66994,2724.9,2724.4,9.2704]
[1724436633576,3.0,2725.1,2723.7,3.67137]
[1724436633793,3.67009,2724.8,2723.5,13.24262]
[1724436633957,3.0,2725.1,2723.5,10.895262]
[1724436633958,3.67034,2724.6,2723.5,10.895262]
[1724436634288,3.67044,2724.5,2723.5,14.567002]
[1724436634444,3.0,2724.4,2723.5,14.567002]
[1724436635141,3.66975,2725.0,2723.6,0.47401355]
[1724436635337,3.0,2724.9,2723.8,9.2702]
[1724436635588,3.0,2725.3,2724.4,9.2702]
[1724436635801,13.10608,2725.6,2724.4,9.2702]
[1724436636000,3.66868,2725.8,2724.4,9.2702]
[1724436636001,3.66869,2725.8,2724.4,9.2702]
[1724436636161,3.66868,2725.8,2724.5,3.67037]
[1724436636366,3.669,2725.6,2724.6,1.324262]
[1724436636682,0.55242686,2725.8,2724.6,4.994512]
[1724436636683,4.22112686,2725.8,2724.6,4.994512]
[1724436636880,3.66878,2725.7,2724.6,4.994432]
[1724436637079,3.66919,2725.4,2724.4,9.2702]
[1724436637459,3.6694,2725.3,2724.4,9.2702]
[1724436637867,0.55242686,2725.8,2724.6,3.67016]
[1724436638208,3.66839,2726.0,2725.0,3.66968]
[1724436638368,3.6679,2726.4,2725.1,9.6019]
[1724436638689,3.6679,2726.4,2725.3,3.66923]
[1724436638891,3.668,2726.3,2725.1,13.27148]
[1724436639189,0.3668,2726.2,2725.1,9.6019]
[1724436639363,3.66819,2726.2,2725.2,4.21941]
[1724436639772,3.66856,2725.9,2725.1,9.6019]
[1724436640095,0.07342363,2726.3,2723.9,4.35142076]
[1724436640096,3.66915,2725.5,2724.7,9.2114]
[1724436640271,3.66884,2725.7,2724.7,9.2114]
[1724436640470,6.66892,2725.6,2724.7,9.2114]
[1724436640691,3.66906,2725.5,2724.7,9.2114]
[1724436640860,3.0,2725.6,2724.7,12.88141]
[1724436641195,3.66855,2725.9,2724.8,3.66998]
[1724436641196,3.0,2725.8,2724.8,3.66998]
[1724436641370,3.0,2725.8,2724.8,3.66989]
[1724436641769,6.66873,2725.8,2724.8,3.66989]
[1724436642384,3.66897,2725.6,2724.3,13.23056]
[1724436642575,3.0,2725.5,2724.5,3.67039]
[1724436642972,3.07342363,2725.5,2724.3,13.23047]
[1724436643284,3.66931,2725.4,2724.3,13.23047]
[1724436643486,3.6696,2725.1,2724.4,1.323047]
[1724436643686,3.0,2725.3,2724.3,9.5599]
[1724436643687,3.66976,2725.0,2724.3,9.5599]
[1724436643904,3.0,2724.9,2724.3,9.5599]
[1724436644201,3.67003,2724.8,2724.3,9.5599]
[1724436644560,6.66999,2724.9,2724.3,9.5599]
[1724436644995,9.6005,2725.7,2724.3,9.5599]
[1724436645217,3.66923,2725.4,2724.4,0.95599]
[1724436645370,3.66955,2725.2,2724.3,9.5599]
[1724436645770,0.96005,2725.7,2724.4,0.55]
[1724436646000,3.66892,2725.6,2724.6,3.67022]
[1724436646297,3.66892,2725.6,2724.5,3.67034]
[1724436646298,3.66892,2725.6,2724.7,4.22011]
[1724436646816,3.66864,2725.8,2724.8,9.0145]
[1724436646996,3.66864,2725.8,2724.9,4.21984]
[1724436647199,3.66864,2725.8,2724.9,0.55]
[1724436647582,3.0,2725.7,2724.9,0.55]
[1724436647791,3.66902,2725.6,2724.8,9.0145]